Cogmind - Beta 11 @@@ ROGUE MODE // 2022.04.21 @ 08:39:19 Player: ldi (hl). (hl) Result: Destroyed by DAS Turret with DAS Cannon Performance ------------- Evolutions (1) 500 Regions Visited (5) 1000 Robots Destroyed (10) 50 Value Destroyed (174) 174 Prototype IDs (3) 60 Alien Tech Used (0) 0 Bonus (279) 279 TOTAL SCORE: 2063 Bonus ------- Aligned with FarCom 300 Friendly Fire -21 Cogmind --------- Core Integrity 0/400 Matter 182/300 Energy 98/100 System Corruption 0% Temperature Cool (1) Movement Walking (190) Ox1 Location -9/Exiles Parts ------- > --- POWER (1) -------- (None) > --- PROPULSION (3) --- Aluminum Leg > --- UTILITY (3) ------ Large Storage Unit Targeting Computer > --- WEAPON (2) ------- (None) > --- INVENTORY (15) --- Ion Engine Large Storage Unit Lightpack 2.0 Sensor Array Experimental Sensor Array Light Armor Plating Supersonic Drone Bay (1/1) Assault Rifle Light Assault Rifle AWS/Gauss Peak State ------------ > --- POWER ------------ Light Nuclear Core > --- PROPULSION ------- Aluminum Leg Aluminum Leg Aluminum Leg > --- UTILITY ---------- Large Storage Unit Targeting Computer > --- WEAPON ----------- AWS/Gauss > --- INVENTORY -------- Ion Engine Large Storage Unit Lightpack 2.0 Sensor Array Experimental Sensor Array Light Armor Plating Supersonic Drone Bay Assault Rifle Light Assault Rifle Light Assault Rifle Heavy Assault Rifle Rocket Launcher [Rating: 29] Favorites ----------- Power Ion Engine Engine Ion Engine Power Core Light Nuclear Core Propulsion Aluminum Leg Leg Aluminum Leg Utility Small Storage Unit Device Sensor Array Storage Small Storage Unit Processor Targeting Computer Weapon Light Assault Rifle Ballistic Gun Light Assault Rifle Launcher Rocket Launcher Build | -11 -10 -10 -9 -9 -9 ------- Run | Scr Mat Min Mat Min Exi Slots Evolved 2 | . . . 2 . . Power . | . . . . . . Propulsion 1 | . . . 1 . . Utility 1 | . . . 1 . . Weapon . | . . . . . . Parts Attached 22 | 6 1 2 1 6 6 Power 2 | 1 . . . 1 . Engine 1 | 1 . . . . . Core 1 | . . . . 1 . Reactor . | . . . . . . Propulsion 4 | 2 . . . 2 . Treads . | . . . . . . Leg 4 | 2 . . . 2 . Wheel . | . . . . . . Hover . | . . . . . . Flight . | . . . . . . Utility 9 | 1 1 2 1 2 2 Device 4 | . 1 2 . . 1 Storage 3 | 1 . . . 1 1 Processor 2 | . . . 1 1 . Hackware . | . . . . . . Protection . | . . . . . . Artifact . | . . . . . . Weapon 7 | 2 . . . 1 4 Energy Gun . | . . . . . . Energy Cannon . | . . . . . . Ballistic Gun 6 | 2 . . . 1 3 Ballistic Cannon . | . . . . . . Launcher 1 | . . . . . 1 Special Weapon . | . . . . . . Impact Weapon . | . . . . . . Slashing Weapon . | . . . . . . Piercing Weapon . | . . . . . . Special Melee Weapon . | . . . . . . Unidentified Prototypes 3 | . . 1 . . 2 Parts Lost 8 | . . . . 3 5 Power 2 | . . . . 1 1 Propulsion 3 | . . . . 1 2 Utility . | . . . . . . Weapon 3 | . . . . 1 2 Highest Loss Streak 5 | . . . . 3 5 To Critical Strikes 1 | . . . . . 1 Average Slot Usage (%) 94 | . 94 100 88 84 93 Engine 8 | . 14 14 11 1 . Core 3 | . . . . 5 10 Leg 27 | . 28 28 22 22 32 Device 7 | . 8 14 11 1 . Storage 12 | . 14 14 11 11 11 Processor 9 | . . . 11 20 19 Ballistic Gun 24 | . 28 28 22 21 18 Naked Turns . | . . . . . . Heaviest Build 29 | 13 14 14 14 14 29 Greatest Support 30 | 20 20 20 20 30 30 Greatest Overweight (x) 2 | 2 . . . 1 2 Average Overweight (x) . | . . . . . . Largest Inventory Capacity 15 | 8 8 8 8 8 15 Average Capacity 8 | 6 8 8 8 8 11 Most Carried 14 | 5 2 7 6 7 14 Average Carried 5 | 2 2 3 6 6 8 Final Capacity 15 | 8 8 8 8 8 15 Final Carried 13 | 2 2 7 6 7 13 Class Distribution -------------------- 71% | Mutant 28% | Scavenger-Mutant Dominant Class ---------------- Mutant | -10/Materials Mutant | -10/Mines Mutant | -9/Materials Scavenger-Mutant | -9/Mines Scavenger-Mutant | -9/Exiles Resources | -11 -10 -10 -9 -9 -9 ----------- Run | Scr Mat Min Mat Min Exi Matter Collected 463 | 242 . 68 46 107 . Remotely . | . . . . . . Salvage Created 362 | . . 72 58 205 27 Parts 37 | . . 10 4 12 11 Haulers Intercepted . | . . . . . . Recyclers Shooed . | . . . . . . Parts Field Recycled . | . . . . . . Retrieved Matter . | . . . . . . Parts Self-Destructed . | . . . . . . Prevented . | . . . . . . Kills | -11 -10 -10 -9 -9 -9 ------- Run | Scr Mat Min Mat Min Exi Combat Hostiles Destroyed 14 | . . 3 1 3 7 Guns 8 | . . 3 1 3 1 AOE 6 | . . . . . 6 Classes Destroyed 6 | . . 2 1 2 1 Worker 1 | . . 1 . . . Recycler 1 | . . . . 1 . Swarmer 4 | . . 3 . 1 . Grunt 2 | . . . . 2 . Sentry 1 | . . . 1 . . Assembled 7 | . . . . . 7 Best Kill Streak 8 | . . 2 1 2 8 Combat Bots Only 7 | . . 2 1 1 7 Max Kills in Single Turn 3 | . . 1 1 1 3 Gunslinging . | . . . . . . Exploded 3 | . . . . . 3 Melee . | . . . . . . Uniques/NPCs Destroyed 1 | . . . . . 1 EX-BIN (-9/Exiles) Combat | -11 -10 -10 -9 -9 -9 -------- Run | Scr Mat Min Mat Min Exi Damage Taken 1212 | . . 118 14 488 592 Core 438 | . . . . 184 254 Absorbed by Shields . | . . . . . . Core Remaining (%) 100 | 100 . 100 . . . Volleys Fired 36 | . 1 11 2 14 8 Largest 2 | . 2 2 2 2 2 Hottest 56 | . 40 40 40 43 56 Shots Fired 69 | . 2 22 4 28 13 Gun 63 | . 2 22 4 28 7 Cannon . | . . . . . . Launcher 6 | . . . . . 6 Special . | . . . . . . Kinetic 63 | . 2 22 4 28 7 Thermal . | . . . . . . Explosive 6 | . . . . . 6 Electromagnetic . | . . . . . . Robot Hit Streak 21 | . . 4 2 20 21 Robot Miss Streak 2 | . 2 2 1 2 2 Penetration Max . | . . . . . . Secondary Targets . | . . . . . . Shots Hit Robots 45 | . . 12 3 23 7 Core Hits 28 | . . 6 2 8 12 Critical Kills . | . . . . . . Critical Parts Destroyed . | . . . . . . Critical Strikes . | . . . . . . Melee Attacks . | . . . . . . Impact . | . . . . . . Slashing . | . . . . . . Piercing . | . . . . . . Sneak Attacks . | . . . . . . Combat Hostiles . | . . . . . . Follow-up Attacks . | . . . . . . Damage Inflicted 1071 | . . 127 35 261 648 Guns 464 | . . 127 35 261 41 Cannons . | . . . . . . Explosions 607 | . . . . . 607 Melee . | . . . . . . Ramming . | . . . . . . Kinetic 464 | . . 127 35 261 41 Thermal . | . . . . . . Explosive 607 | . . . . . 607 Electromagnetic . | . . . . . . Impact . | . . . . . . Slashing . | . . . . . . Piercing . | . . . . . . Highest Corruption . | . . . . . . Average Corruption . | . . . . . . Corruption Purged . | . . . . . . Corruption Blocked . | . . . . . . Overload Shots . | . . . . . . Overflow Damage 22 | . . . . . 22 Projectiles . | . . . . . . Explosions 22 | . . . . . 22 Melee . | . . . . . . Knockbacks . | . . . . . . Impact . | . . . . . . Kinetic . | . . . . . . Secondary . | . . . . . . Self-Inflicted Damage 8 | . . . . . 8 Shots 1 | . . . . . 1 Rammed . | . . . . . . Targets Rammed . | . . . . . . Kicked . | . . . . . . Crushed . | . . . . . . Highest Temperature 8 | . . . . 2 8 Average Temperature 2 | . . . . 2 8 Received Heat Transfer 110 | . . . . 90 20 Siege Activations . | . . . . . . Robots Corrupted . | . . . . . . Combat Hostiles . | . . . . . . Parts Fried . | . . . . . . Impact Corruptions . | . . . . . . Robots Melted . | . . . . . . Combat Hostiles . | . . . . . . Parts Melted . | . . . . . . Heat Transferred . | . . . . . . Parts Sabotaged . | . . . . . . Parts Stolen . | . . . . . . Parts Stripped . | . . . . . . Power Chain Reactions . | . . . . . . Missiles Intercepted . | . . . . . . Alert | -11 -10 -10 -9 -9 -9 ------- Run | Scr Mat Min Mat Min Exi Peak Influence 120 | . 22 113 57 120 . Initial 22 | . . 8 . 22 . Average 50 | . 11 47 27 85 . Maximum Alert Level . | . . . . . . Low Security (%) 100 | 100 100 100 100 100 . Level 1 . | . . . . . . Level 2 . | . . . . . . Level 3 . | . . . . . . Level 4 . | . . . . . . Level 5 . | . . . . . . High Security . | . . . . . . Max Security . | . . . . . . Squads Dispatched . | . . . . . . Investigation . | . . . . . . Extermination . | . . . . . . Reinforcement . | . . . . . . Assault . | . . . . . . Garrison . | . . . . . . Intercept . | . . . . . . Searches Triggered . | . . . . . . Construction Impeded . | . . . . . . Haulers Reinforced . | . . . . . . Active Scanning Responses . | . . . . . . Cargo Convoy Interrupts . | . . . . . . Stealth | -11 -10 -10 -9 -9 -9 --------- Run | Scr Mat Min Mat Min Exi Distress Signals . | . . . . . . Communications Jammed . | . . . . . . Distress Signals . | . . . . . . Times Spotted 30 | . . 5 1 17 7 Peak Tracking Total 11 | . 1 3 1 11 10 Tactical Retreats 4 | . . 1 . 2 1 Traps | -11 -10 -10 -9 -9 -9 ------- Run | Scr Mat Min Mat Min Exi Traps Triggered . | . . . . . . Indirectly . | . . . . . . Trap Hack Attempts . | . . . . . . Triggered . | . . . . . . Disarmed . | . . . . . . Reprogrammed 3 | . 3 . . . . Reused . | . . . . . . Traps Extracted . | . . . . . . Installed . | . . . . . . Triggered . | . . . . . . Machines | -11 -10 -10 -9 -9 -9 ---------- Run | Scr Mat Min Mat Min Exi Machines Disabled 2 | . . . . . 2 Max in Single Turn 2 | . . . . . 2 Machines Sabotaged . | . . . . . . Garrisons Compromised . | . . . . . . Overloaded Fab Kills . | . . . . . . Hacking | -11 -10 -10 -9 -9 -9 --------- Run | Scr Mat Min Mat Min Exi Machines Accessed 2 | . 1 . 1 . . Terminals 2 | . 1 . 1 . . Fabricators . | . . . . . . Repair Stations . | . . . . . . Recycling Units . | . . . . . . Scanalyzers . | . . . . . . Garrison Access . | . . . . . . Total Hacks 8 | . 5 . 3 . . Successful 4 | . 2 . 2 . . Failed 4 | . 3 . 1 . . Catastrophic 2 | . 1 . 1 . . Database Lockouts . | . . . . . . Manual 8 | . 4 . 3 . 1 Terminals 8 | . 5 . 3 . . Fabricators . | . . . . . . Repair Stations . | . . . . . . Recycling Units . | . . . . . . Scanalyzers . | . . . . . . Garrison Access . | . . . . . . Terminal Hacks 4 | . 2 . 2 . . Part Schematic 1 | . 1 . . . . Robot Analysis 2 | . . . 2 . . Reprogram Traps 1 | . 1 . . . . Fabricator Hacks . | . . . . . . Repair Station Hacks . | . . . . . . Recycling Unit Hacks . | . . . . . . Scanalyzer . | . . . . . . Garrison Access Hacks . | . . . . . . Unauthorized Hacks . | . . . . . . Terminals . | . . . . . . Fabricators . | . . . . . . Repair Stations . | . . . . . . Recycling Units . | . . . . . . Scanalyzers . | . . . . . . Garrison Access . | . . . . . . Data Cores Recovered . | . . . . . . Used . | . . . . . . Hacking Detections 2 | . 1 . 1 . . Full Trace Events 1 | . . . 1 . . Feedback Events . | . . . . . . Feedback Blocked . | . . . . . . Robot Schematics Acquired . | . . . . . . Robots Built . | . . . . . . Authchips . | . . . . . . Time . | . . . . . . Total Robot Build Rating . | . . . . . . Part Schematics Acquired 1 | . 1 . . . . Parts Built . | . . . . . . Authchips . | . . . . . . Time . | . . . . . . Total Part Build Rating . | . . . . . . Parts Repaired . | . . . . . . Time . | . . . . . . Parts Recycled . | . . . . . . Recycled Matter . | . . . . . . Retrieved Matter . | . . . . . . Retrieved Components . | . . . . . . Parts Scanalyzed . | . . . . . . Part Schematics Acquired . | . . . . . . Parts Damaged . | . . . . . . Bothacking | -11 -10 -10 -9 -9 -9 ------------ Run | Scr Mat Min Mat Min Exi Used RIF Installer . | . . . . . . Robots Hacked . | . . . . . . Non-combat . | . . . . . . Combat . | . . . . . . Robot Hacks Applied . | . . . . . . Relay Couplers Released . | . . . . . . Fabnet Peak Effective % . | . . . . . . Robots Rewired . | . . . . . . Allies Hacked . | . . . . . . Hacks Repelled . | . . . . . . Allies | -11 -10 -10 -9 -9 -9 -------- Run | Scr Mat Min Mat Min Exi Total Allies 1 | . . . . 1 . Largest Group 1 | . . . . 1 1 Highest-Rated Group 31 | . . . . 31 31 Highest-Rated Ally 31 | . . . . 31 31 Total Orders . | . . . . . . Ally Attacks . | . . . . . . Total Damage . | . . . . . . Kills . | . . . . . . Allies Corrupted . | . . . . . . Allies Melted . | . . . . . . Intel | -11 -10 -10 -9 -9 -9 ------- Run | Scr Mat Min Mat Min Exi Robot Analysis Total 2 | . . . 2 . . Derelict Logs Recovered 2 | . . 2 . . . Drone Launches . | . . . . . . Drone Recoveries . | . . . . . . Exploration | -11 -10 -10 -9 -9 -9 ------------- Run | Scr Mat Min Mat Min Exi Turns Passed 1861 | 55 76 841 113 323 453 Spaces Moved 1415 | 53 60 659 89 207 347 Core 33 | 33 . . . . . Treads . | . . . . . . Legs 1382 | 20 60 659 89 207 347 Wheels . | . . . . . . Hover . | . . . . . . Flight . | . . . . . . Fastest Speed 50 | 50 120 120 120 120 120 Average Speed 119 | 82 120 120 120 123 121 Slowest Speed 260 | 150 120 120 120 190 260 Overloaded Moves . | . . . . . . Propulsion Burnouts . | . . . . . . Robots Hopped . | . . . . . . Cave-ins Triggered . | . . . . . . Exploration Rate (%) 40 | 3 21 96 15 47 61 Regions Visited 5 Branch Regions 3 Pre-discovered Areas 1 | . . 1 . . . Known Exits Taken . | . . . . . . Unknown Exits Taken 5 | 1 1 1 1 1 . Scrap Searched 1 | . . 1 . . . Spaces Dug . | . . . . . . Terrain Destroyed 8 | . . . . . 8 Melee . | . . . . . . Projectile . | . . . . . . AOE 8 | . . . . . 8 Terrain Rammed . | . . . . . . Walls Destroyed . | . . . . . . Machines Disabled . | . . . . . . Actions | -11 -10 -10 -9 -9 -9 --------- Run | Scr Mat Min Mat Min Exi Total 1521 | 63 61 688 91 247 371 Wait 30 | . . 12 . 18 . Move 1410 | 52 59 658 88 206 347 Hop . | . . . . . . Pick Up 15 | 5 . 5 . 2 3 Fast Attach 9 | 3 1 . . 3 2 Attach 8 | 3 . . 1 1 3 Detach 3 | . . . . . 3 Swap 5 | . . 2 . 2 1 Drop 5 | . . . . 1 4 Fire 36 | . 1 11 2 14 8 Melee . | . . . . . . Ram . | . . . . . . Kick . | . . . . . . Crush . | . . . . . . Escape Stasis . | . . . . . . Rewire . | . . . . . . Trap . | . . . . . . Miscellaneous . | . . . . . . Route ------- -11/Scrapyard -10/Materials -10/Mines (discovered 2 exits: *Mat x2) -9/Materials -9/Mines (discovered 2 exits: [*Mat] / *Exi) -9/Exiles History --------- Turn | Location | Event 6 | -11/Scrapyard | Discovered new exit (range 14) 56 | -11/Scrapyard | Entered Materials 126 | -10/Materials | Discovered new exit (range 6) 132 | -10/Materials | Entered Mines 268 | -10/Mines | Learned location of Zion (-7) 307 | -10/Mines | Discovered new exit (range 9) 315 | -10/Mines | Build established: Mutant 618 | -10/Mines | Discovered new exit (range 9) 653 | -10/Mines | Learned Materials security intel 670 | -10/Mines | Joined a pair of Derelicts in attacking an 0b10 outpost 833 | -10/Mines | Found a damaged Exp. Sensor Array with a note attached 836 | -10/Mines | Found Prototype Device 837 | -10/Mines | Identified Exp. Sensor Array 973 | -10/Mines | Entered Materials 973 | -9/Materials | Evolved 2 slots: Propulsion x1, Utility x1 1048 | -9/Materials | Discovered new exit (range 15) 1086 | -9/Materials | Entered Mines 1087 | -9/Mines | Assembled infested the area 1090 | -9/Mines | Discovered new exit (range 7) 1151 | -9/Mines | Lost 3 parts (1p1n1w) 1279 | -9/Mines | Received a Rocket Launcher from a helpful Derelict 1302 | -9/Mines | Received a Mining Laser from a helpful Derelict 1395 | -9/Mines | Deemed a non-threat by the Exiles lab entrance 1395 | -9/Mines | Discovered new exit (range 5) 1409 | -9/Mines | Entered Exiles 1409 | -9/Exiles | Accompanied by 1 ally 1438 | -9/Exiles | Met 8R-AWN 1460 | -9/Exiles | Met EX-HEX 1491 | -9/Exiles | Met EX-BIN 1508 | -9/Exiles | Aligned with FarCom system 1509 | -9/Exiles | Given EX-Vault access code 1538 | -9/Exiles | Opened EX-Vault 1544 | -9/Exiles | Build established: Scavenger-Mutant 1563 | -9/Exiles | Warned to stay clear of 0b10 Research branches 1595 | -9/Exiles | Met EX-DEC 1761 | -9/Exiles | Found Prototype Storage 1767 | -9/Exiles | Found Prototype Device 1767 | -9/Exiles | Identified Supersonic Drone Bay 1775 | -9/Exiles | Found Prototype Ballistic Gun 1775 | -9/Exiles | Identified AWS/Gauss 1825 | -9/Exiles | Attacked by the Exiles 1835 | -9/Exiles | Core integrity fell below 50% 1852 | -9/Exiles | Destroyed EX-BIN 1859 | -9/Exiles | Core integrity fell below 20% 1862 | -9/Exiles | Destroyed by DAS Turret with DAS Cannon Last Messages --------------- 01840_ as-57547 destroyed. 01840_ as-25680 destroyed. 01840_ as-50501 destroyed. 01840_ Destroyed Asb. F-torch. 01840_ Lgt. Nuclear Core destroyed. 01840_ Destroyed Lgt. Nuclear Core. 01842_ Machine disabled. 01845_ as-92153 destroyed. 01848_ as-32072 destroyed. 01852_ EX-BIN: "You can't kill me, my evil twin will get revenge!" 01852_ EX-BIN destroyed. 01852_ as-96007 destroyed. 01855_ Penetrated by HV Slug. 01855_ Critical hit (Destroy). 01855_ Rocket Launcher destroyed. 01855_ Penetrated by HV Slug. 01857_ Aluminum Leg destroyed. 01857_ Penetrated by HV Slug. 01860_ HV Slug penetrates Machine. 01860_ Hvy. Assault Rifle destroyed. Map ----- +----------------------------------------------------+ | ?????????????????????##"###??# #?#"""""""#???? | | ?????????????????????? ??????# #?#"""""""#???? | | ?????????????????????????????# #?#"""""""#???? | | ????????????????????????????## ###"" """"#???? | | ###?????????????????????????#" """"#???? | | "#?????????????????????????#" """#???? | | "#?????????????????????????#" """#???? | | "#?????????????????????????#" """#???? | | ""#????????????##???????????#" """#???? | | ""#???????????? """????????#" """#???? | | ""?????????????" """????????## """"???? | | #?????????????"" ?????????# """#???? | | #????????????#"" ?????????#" "X" """"???? | | ##???????????#"" "#????????#" """ #???? | | "#???????????? ""?????????#" """""""""#???? | | ###???????????" "?????????##" ###########???? | | ##??????????# #????????##"" #?????????????? | | ######???### ###?######"" #?????????????? | | """#####X# #"###""""" " ##????????????? | | """""" " ##???######### | | "" """[ #####"""""""" | | # " " """ "" | | ### %%% "" " | | ??### % " | | ????## =*% % | | ?????## = % @ | | ??????##" ! | | ???????#""" """ | | ??????##" ######" | | ??????#"" ""##????## | | ??????#""" """##?????????# "" | | ?????#""" """##???????????#"""" | | ?????#""" ""#????????????#"" | | ?????#"" ##?????????????""" | | ?????#""" ????????????? | | ?????#"" ?????????? | | ?????##"" ???????? | | ??????#"""" ??????? | | ??????## ???????? " | | ???????#" ????????? """ | | ????????"""" ??????????? " " ""#" | | ????????"" ""????????????""" "??##"" | | ??????????? """????????????????""????### | | ??????????? ??????????????????????????? | | ??????????? ?????????????????????????????? | | ????????????? ???????????????????????????????? | | ?????????????????????????????????????????????????? | | ?????????????????????????????????????????????????? | | ?????????????????????????????????????????????????? | | ?????????????????????????????????????????????????? | +----------------------------------------------------+ Best States ------------- Heat Dissipation 28 Energy Generation 14 Energy Capacity 250 Matter Stores 300 Matter Capacity 300 Sight Range 16 Robot Scan Range 14 Terrain Scan Density 10 Evasion (%) 55 Targeting Accuracy 10 Item Schematics ----------------- Cargo Storage Unit | -10/Materials | Hacked Robot Schematics ------------------ None Fabricated ------------ Nothing Alien Tech Used ----------------- None Achievements -------------- None Challenges ------------ None Game ------ Seed EnhancedGrenadeCompressor Manual? 0 Play Time 00:20:30 Cumulative 544.2 hours Start 2022.04.21 @ 08:17:42 End 2022.04.21 @ 08:39:19 Sessions 1 Manual Loads 0 Difficulty Rogue Special Mode None Game No. 339 Rogue 339 Adventurer 0 Explorer 0 Win Type - Total 37 Types 24/1/6/6/0/0/0/0/0 Lore% 82 Gallery% 84 Achievement% 78 Wizard Run 0 Options --------- ASCII 1 Keyboard 0 Movement Numpad Keybinds 0 Fullscreen 2 Font 36/X11 Map View 76x50 Tactical HUD 1 Map Filters NONE Filters NONE Steam 1 RUN: 936a7b20-a005-4382-8595-602ec9ab1e96